bitfinex-derivatives/quotes_SOLF0:USTF0_20250124
["timestamp","ask_amount","ask_price","bid_price","bid_amount"]
[1737735003251,0.0255856,263.5,263.44,0.02507681]
[1737735004156,0.0255856,263.5,263.48,8.98438848]
[1737735004457,5.65481223,267.11,263.48,8.98438848]
[1737735004458,8.98438848,263.71,263.48,8.98438848]
[1737735004657,7.19609043,263.73,263.59,8.98438848]
[1737735004856,8.98438848,263.78,263.6,8.98438848]
[1737735005263,1.2765,263.77,263.6,8.98438848]
[1737735005452,0.02806416,263.72,263.66,0.02751943]
[1737735006158,0.02806416,263.72,263.69,3.7917]
[1737735006361,0.02806416,263.72,263.66,0.02751943]
[1737735006761,0.02806416,263.72,263.67,3.7919]
[1737735006960,0.02806416,263.72,263.66,0.02751943]
[1737735007257,0.02806416,263.72,263.7,3.7915]
[1737735007962,0.02806416,263.72,263.69,14.35851365]
[1737735008163,0.02806416,263.72,263.66,0.02751943]
[1737735008558,0.02806416,263.72,263.7,3.7915]
[1737735009861,14.35851365,263.95,263.69,14.35851365]
[1737735010060,14.35851365,263.95,263.74,14.35851365]
[1737735010662,3.3029,263.98,263.74,14.35851365]
[1737735011059,0.02897927,263.89,263.83,0.02640642]
[1737735011867,0.02897927,263.89,263.72,3.7912]
[1737735012161,14.35851365,263.9,263.69,14.35851365]
[1737735012961,0.67436853,263.89,263.65,1.8523]
[1737735013263,3.7904,263.78,263.77,0.02835593]
[1737735014359,3.7911,263.74,263.64,14.35851365]
[1737735014763,1.3317,263.85,263.64,18.15081365]
[1737735014969,3.7915,263.71,263.64,18.15081365]
[1737735015562,0.02732247,263.7,263.65,0.02855587]
[1737735015869,14.35851365,263.79,263.33,34.15467973]
[1737735016064,3.7939,263.55,263.45,3.7951]
[1737735016363,3.7939,263.55,263.39,4.0632]
[1737735016364,3.32,263.67,263.39,4.0632]
[1737735016565,3.7942,263.52,263.47,0.02759425]
[1737735016759,0.02781332,263.53,263.33,9.58964314]
[1737735016966,1.2942,263.51,263.33,9.58964314]
[1737735017167,1.2942,263.51,263.28,3.7976]
[1737735017365,1.2942,263.51,263.26,1.3373]
[1737735017566,3.32,263.5,263.26,1.3373]
[1737735018070,0.0253814,263.41,263.35,0.0290882]
[1737735020870,3.796,263.4,263.35,0.0290882]
[1737735021671,0.0253814,263.41,263.24,2.16979]
[1737735021672,0.0253814,263.41,263.24,0.24189]
[1737735021873,14.35851365,263.39,263.24,0.24189]
[1737735022072,3.7968,263.34,263.24,0.24189]
[1737735022273,1.405,263.38,263.24,0.24189]
[1737735022771,3.7972,263.31,263.24,0.24189]
[1737735023075,3.7972,263.31,263.28,0.02826117]
[1737735023375,0.0257449,263.34,263.28,0.02826117]
[1737735023967,0.0257449,263.34,263.24,0.24189]
[1737735024373,3.798,263.26,263.24,0.24189]
[1737735024676,1.3948,263.33,263.24,0.24189]
[1737735024870,3.7978,263.27,263.24,0.24189]
[1737735025877,3.7981,263.25,263.24,0.24189]
[1737735026876,3.7986,263.22,263.15,3.7995]
[1737735027378,14.35851365,263.3,263.07,14.35851365]
[1737735027773,3.7983,263.24,263.14,3.7996]
[1737735027969,3.7983,263.24,263.07,14.35851365]
[1737735027970,0.02856844,263.21,263.16,0.02868606]
[1737735028575,3.7989,263.2,263.16,0.02868606]
[1737735028773,0.02856844,263.21,263.16,0.02868606]
[1737735029178,0.02856844,263.21,263.16,3.82798606]
[1737735029376,0.02856844,263.21,263.16,0.02868606]
[1737735030078,3.82726844,263.21,263.16,0.02868606]
[1737735030279,0.02856844,263.21,263.16,0.02868606]
[1737735030779,0.02856844,263.21,263.17,3.7991]
[1737735031676,0.02856844,263.21,263.16,0.02868606]
[1737735032081,3.7992,263.18,263.16,0.02868606]
[1737735035982,3.799,263.19,263.16,0.02868606]
[1737735036983,3.7991,263.18,263.16,0.02868606]
[1737735037286,0.02856844,263.21,263.07,14.35851365]
[1737735037486,3.7995,263.16,263.07,14.35851365]
[1737735037686,14.35851365,263.3,263.1,3.8002]
[1737735037986,0.75961867,263.29,263.1,3.8002]
[1737735038181,0.75961867,263.29,263.07,14.35851365]
[1737735038182,0.75961867,263.29,263.13,3.7997]
[1737735038383,0.02657542,263.22,263.17,0.02490255]
[1737735039082,3.7991,263.18,263.17,0.02490255]
[1737735039386,0.02657542,263.22,263.07,14.35851365]
[1737735039890,3.32,263.28,263.07,14.35851365]
[1737735040180,3.7992,263.18,263.12,3.7998]
[1737735040380,3.7992,263.18,263.07,14.35851365]
[1737735040580,3.7992,263.17,263.12,3.7998]
[1737735041284,0.02408138,263.2,263.07,14.35851365]
[1737735041585,0.75961867,263.29,263.07,14.35851365]
[1737735041784,0.02760989,263.16,263.07,14.35851365]
[1737735042287,0.02760989,263.16,263.02,14.35851365]
[1737735042586,0.02760989,263.16,263.07,14.35851365]
[1737735043487,3.7997,263.14,263.09,3.8004]
[1737735043681,0.02760989,263.16,263.01,1.3285]
[1737735044078,14.35851365,263.27,263.08,3.8005]
[1737735044279,0.02622527,263.11,263.01,1.3285]
[1737735044483,1.338,263.26,263.04,14.35851365]
[1737735044688,0.02772472,263.09,263.04,14.35851365]
[1737735044888,3.7996,263.15,263.04,14.35851365]
[1737735045088,0.02619209,263.09,263.04,14.35851365]
[1737735045489,1.338,263.26,263.04,14.35851365]
[1737735045789,0.0247762,263.09,263.04,14.35851365]
[1737735045989,0.75973409,263.25,263.04,18.15961365]
[1737735046186,0.0246648,263.09,262.99,56.91943679]
[1737735046387,3.8012,263.04,262.98,3.8019]
[1737735046791,0.0269888,263.07,262.93,14.35851365]
[1737735046992,0.0269888,263.07,262.87,4.3086]
[1737735047285,0.02905258,263.0,262.92,3.8028]
[1737735047485,0.02905258,263.0,262.87,3.3562]
[1737735047690,3.8022,262.97,262.91,3.803]
[1737735048888,0.02905258,263.0,262.91,3.803]
[1737735049493,0.02905258,263.0,262.87,1.383]
[1737735049690,0.02905258,263.0,262.76,2.8789]
[1737735049991,3.8019,262.99,262.92,3.8028]
[1737735050187,0.02905258,263.0,262.77,1.3668]
[1737735050384,0.02905258,263.0,262.81,14.35851365]
[1737735050588,0.02905258,263.0,262.73,14.35851365]
[1737735050589,14.35851365,262.97,262.73,14.35851365]
[1737735050795,1.3257,262.96,262.73,14.35851365]
[1737735051090,0.02607,262.88,262.73,14.35851365]
[1737735052087,3.8041,262.84,262.76,3.8051]
[1737735052283,0.02607,262.88,262.73,14.35851365]
[1737735052492,1.3257,262.96,262.73,14.35851365]
[1737735052791,0.02872894,262.83,262.73,14.35851365]
[1737735052984,1.3257,262.96,262.78,14.35851365]
[1737735053186,1.3257,262.96,262.83,14.35851365]
[1737735053791,3.8024,262.95,262.88,3.8034]
[1737735053987,1.3257,262.96,262.83,14.35851365]
[1737735054189,0.02438342,262.94,262.89,0.02516844]
[1737735054388,3.32,263.11,262.93,14.35851365]
[1737735054594,1.8565,263.13,262.93,14.35851365]
[1737735055695,0.02435959,263.06,263.0,0.0245682]
[1737735057895,14.35851365,263.04,262.83,14.35851365]
[1737735058392,14.35851365,263.04,262.78,14.35851365]
[1737735058997,0.02819157,262.94,262.88,0.0244243]
[1737735059495,0.02819157,262.94,262.78,14.35851365]
[1737735059696,0.02819157,262.94,262.88,0.02551079]
[1737735059895,14.35851365,263.04,262.88,0.02551079]
[1737735060094,0.0244167,262.94,262.79,1.4122]
[1737735060294,0.0244167,262.94,262.89,0.02810925]
[1737735060896,3.8270167,262.94,262.89,0.02810925]
[1737735061297,0.0244167,262.94,262.89,0.02810925]
[1737735061499,0.0244167,262.94,262.92,3.8028]
[1737735061799,1.3512,263.08,262.89,0.02810925]
[1737735061998,1.3512,263.08,262.89,1.905]
[1737735062489,14.35851365,263.07,262.89,1.905]
[1737735062990,0.02736251,263.01,262.95,0.02896009]
[1737735063989,3.8022,262.97,262.95,0.02896009]
[1737735064791,0.02736251,263.01,262.95,0.02896009]
[1737735064792,1.3784,263.0,262.95,0.02896009]
[1737735064995,0.02736251,263.01,262.95,0.02896009]
[1737735065391,0.02736251,263.01,262.95,3.83136009]
[1737735065792,0.02736251,263.01,262.97,3.8021]
[1737735065998,0.02736251,263.01,262.95,0.02896009]
[1737735066397,0.02736251,263.01,262.97,3.802]
[1737735066791,0.02736251,263.01,262.95,0.02896009]
[1737735066998,3.8017,263.0,262.95,0.02896009]
[1737735067299,0.02736251,263.01,262.95,0.02896009]
[1737735067801,0.02736251,263.01,262.96,3.8021]
[1737735067998,0.02736251,263.01,262.95,0.02896009]
[1737735068701,3.8,263.12,262.98,14.35851365]
[1737735069499,1.4213,263.16,262.98,14.35851365]
[1737735069801,0.75973409,263.25,263.08,14.35851365]
[1737735069999,9.619e-05,263.1,263.08,14.35851365]
[1737735070303,3.7986,263.22,263.08,14.35851365]
[1737735070895,3.7987,263.21,263.08,14.35851365]
[1737735071298,0.0286378,263.17,263.13,3.7997]
[1737735071804,0.0286378,263.17,263.12,0.02484469]
[1737735072004,0.0286378,263.17,263.12,3.82474469]
[1737735072400,0.0286378,263.17,263.12,0.02484469]
[1737735072606,3.7998,263.14,263.12,0.02484469]
[1737735072797,0.0286378,263.17,263.12,0.02484469]
[1737735073107,0.0286378,263.17,263.15,3.7994]
[1737735074604,0.0286378,263.17,263.13,14.35851365]
[1737735074605,0.0286378,263.17,263.13,3.7997]
[1737735074805,0.0286378,263.17,263.12,0.02484469]
[1737735075209,3.8279378,263.17,263.12,3.82474469]
[1737735075414,0.0286378,263.17,263.12,0.02484469]
[1737735076009,0.0286378,263.17,263.16,3.7994]
[1737735076409,0.0286378,263.17,263.12,0.02484469]
[1737735076608,0.0286378,263.17,263.12,3.82474469]
[1737735076914,3.8279378,263.17,263.12,0.02484469]
[1737735077213,0.0286378,263.17,263.15,3.7995]
[1737735077505,4.55793409,263.25,263.16,3.7993]
[1737735077709,0.75973409,263.25,263.13,14.35851365]
[1737735078009,3.7982,263.24,263.13,14.35851365]
[1737735078205,3.3932,263.28,263.13,14.35851365]
[1737735078710,0.02786751,263.23,263.18,0.02916735]
[1737735079805,3.82636751,263.23,263.18,3.82816735]
[1737735080008,0.02786751,263.23,263.18,0.02916735]
[1737735080610,3.7987,263.21,263.18,0.02916735]
[1737735080810,0.02786751,263.23,263.18,0.02916735]
[1737735081417,3.7989,263.19,263.18,0.02916735]
[1737735081616,0.02786751,263.23,263.18,0.02916735]
[1737735082717,0.02786751,263.23,263.22,3.7985]
[1737735082917,14.35851365,263.43,263.18,14.387681]
[1737735083118,0.67537118,263.42,263.18,14.387681]
[1737735083320,3.7976,263.28,263.18,14.35851365]
[1737735083519,17.67851365,263.43,263.18,14.35851365]
[1737735084120,14.35851365,263.37,263.13,14.35851365]
[1737735084419,3.7975,263.29,263.28,0.02593298]
[1737735084620,1.3586,263.36,263.13,14.35851365]
[1737735084926,0.02555497,263.28,263.26,0.02492825]
[1737735085115,3.7978,263.27,263.26,0.02492825]
[1737735085818,3.82463398,263.29,263.26,0.02492825]
[1737735086118,0.02703398,263.29,263.26,0.02492825]
[1737735086321,0.02703398,263.29,263.26,3.82282825]
[1737735086518,3.7978,263.27,263.26,0.02492825]
[1737735086820,0.02703398,263.29,263.26,3.82282825]
[1737735087022,0.02703398,263.29,263.26,0.02492825]
[1737735089922,0.02703398,263.29,263.28,3.7976]
[1737735090321,1.4224,263.49,263.28,3.7976]
[1737735090322,3.7956,263.43,263.37,3.7963]
[1737735090522,3.3896,263.49,263.37,3.7963]
[1737735090721,3.3896,263.49,263.28,14.35851365]
[1737735090922,1.396,263.48,263.28,14.35851365]
[1737735091122,14.35851365,263.47,263.28,14.35851365]
[1737735091520,0.02707264,263.4,263.35,0.02711434]
[1737735092328,3.7965,263.36,263.35,0.02711434]
[1737735095129,3.7965,263.36,263.35,1.434e-05]
[1737735098330,5.7906,263.36,263.35,1.434e-05]
[1737735098634,1.9941,263.36,263.13,14.35851365]
[1737735098936,14.35851365,263.32,263.08,14.35851365]
[1737735099131,3.7992,263.17,263.08,14.35851365]
[1737735099836,14.35851365,263.32,263.08,14.35851365]
[1737735100033,0.02501114,263.15,263.1,0.0268425]
[1737735100229,3.7986,263.22,263.15,3.7995]
[1737735100538,14.35851365,263.33,263.15,3.7995]
[1737735100938,0.02878833,263.21,263.15,3.7995]
[1737735101138,3.7981,263.25,263.21,0.02833403]
[1737735101333,0.02868984,263.21,263.08,14.35851365]
[1737735101637,0.02868984,263.21,263.2,0.02906887]
[1737735101832,0.02868984,263.21,263.08,14.35851365]
[1737735102033,0.02868984,263.21,263.18,0.02640896]
[1737735102338,0.02868984,263.21,263.14,3.7996]
[1737735102541,0.02868984,263.21,263.17,0.02538888]
[1737735102735,0.02868984,263.21,263.17,3.82458888]
[1737735103837,0.02868984,263.21,263.2,12.80439658]
[1737735104436,2.2180456,263.35,263.2,9.00559658]
[1737735105035,2.2180456,263.35,263.25,3.798]
[1737735105233,9.00559658,263.34,263.16,9.00559658]
[1737735105639,0.02890829,263.28,263.22,0.02548097]
[1737735105842,2.2180456,263.35,263.14,14.40787646]
[1737735106138,0.0257553,263.28,263.23,3.7983]
[1737735106345,0.0257553,263.28,263.22,0.02506961]
[1737735106642,0.0257553,263.28,263.27,3.7978]
[1737735106937,3.7949,263.48,263.25,14.40787646]
[1737735107142,7.19617668,263.49,263.41,14.40787646]
[1737735107343,41.1017026,263.57,263.46,14.40787646]
[1737735107643,41.1017026,263.57,263.38,14.40787646]
[1737735108042,41.1017026,263.57,263.43,14.40787646]
[1737735108340,0.02794955,263.5,263.48,3.7947]
[1737735109742,1.3977,263.6,263.49,14.40787646]
[1737735110045,3.3845,263.68,263.55,14.40787646]
[1737735110245,3.3845,263.68,263.61,14.40787646]
[1737735111042,0.02765983,263.67,263.62,0.0273361]
[1737735111649,3.7922,263.66,263.62,0.0273361]
[1737735111944,0.02765983,263.67,263.62,0.0273361]
[1737735114647,3.7913,263.73,263.66,14.40787646]
[1737735115345,1.382,263.76,263.66,18.19997646]
[1737735115647,1.382,263.76,263.66,14.40787646]
[1737735115846,0.02757443,263.74,263.68,0.0270845]
[1737735116938,3.7912,263.73,263.68,0.0270845]
[1737735117144,0.02757443,263.74,263.68,0.0270845]
[1737735118049,3.7916,263.7,263.68,0.0270845]
[1737735118250,0.02757443,263.74,263.61,14.40787646]
[1737735118444,3.7921,263.67,263.61,14.40787646]
[1737735118647,1.382,263.76,263.55,14.40787646]
[1737735118845,0.67705999,263.75,263.55,14.40787646]
[1737735119144,3.7927,263.62,263.55,14.40787646]
[1737735119543,0.02650113,263.61,263.56,0.02836079]
[1737735123052,3.7933,263.59,263.56,0.02836079]
[1737735123553,0.02650113,263.61,263.56,0.02836079]
[1737735123847,0.02650113,263.61,263.45,14.40787646]
[1737735124042,14.40787646,263.63,263.41,5.88257996]
[1737735125145,0.02760439,263.55,263.41,5.88257996]
[1737735125351,3.794,263.54,263.49,0.02559674]
[1737735125552,0.02760439,263.55,263.49,0.02559674]
[1737735125753,3.2915,263.53,263.34,1.8865]
[1737735125949,3.2915,263.53,263.37,3.7963]
[1737735126146,3.2915,263.53,263.33,14.40787646]
[1737735126549,3.7953,263.45,263.33,14.40787646]
[1737735126850,0.02496795,263.42,263.36,0.02420523]
[1737735127251,0.02496795,263.42,263.33,14.40787646]
[1737735127452,0.02496795,263.42,263.36,0.02460279]
[1737735127652,0.02496795,263.42,263.37,3.7963]
[1737735128153,0.02496795,263.42,263.38,14.40787646]
[1737735128353,3.2915,263.53,263.38,14.40787646]
[1737735128554,3.7948,263.48,263.38,14.40787646]
[1737735128755,3.2915,263.53,263.38,14.40787646]
[1737735129554,3.82003199,263.48,263.43,0.02414951]
[1737735130355,0.02523199,263.48,263.43,0.02414951]
[1737735130654,0.02523199,263.48,263.43,3.81964951]
[1737735130855,0.02523199,263.48,263.43,0.02414951]
[1737735131254,0.02523199,263.48,263.43,14.43202597]
[1737735131650,0.02523199,263.48,263.43,14.18969597]
[1737735131856,0.02523199,263.48,263.44,3.7952]
[1737735133353,0.02523199,263.48,263.43,14.21596233]
[1737735133549,0.02523199,263.48,263.47,3.7949]
[1737735134549,0.02523199,263.48,263.43,14.21596233]
[1737735135155,3.82003199,263.48,263.44,3.7953]
[1737735135352,0.02523199,263.48,263.43,14.21596233]
[1737735136258,0.02523199,263.48,263.47,3.7949]
[1737735136555,0.02523199,263.48,263.43,14.21596233]
[1737735136757,0.02523199,263.48,263.44,3.7953]
[1737735137158,0.02523199,263.48,263.43,14.21596233]
[1737735137558,0.02523199,263.48,263.47,3.7949]
[1737735140459,3.794,263.54,263.49,3.7945]
[1737735140660,1.4301,263.59,263.43,14.18969597]
[1737735141156,3.7942,263.53,263.48,3.7946]
[1737735141358,3.7942,263.53,263.43,14.18969597]
[1737735141560,0.02442523,263.51,263.45,0.02855826]
[1737735141860,0.02442523,263.51,263.48,8.98461058]
[1737735142062,0.02442523,263.51,263.45,0.02855826]
[1737735142456,3.7946,263.5,263.45,0.02855826]
[1737735142653,0.02442523,263.51,263.45,0.02855826]
[1737735143262,3.7945,263.5,263.47,3.7948]
[1737735143458,0.02442523,263.51,263.45,0.02855826]
[1737735143855,3.7948,263.48,263.45,3.82375826]
[1737735145457,3.7946,263.5,263.45,0.02855826]
[1737735145658,0.02442523,263.51,263.48,8.98461058]
[1737735147064,0.02442523,263.51,263.48,12.77921058]
[1737735150567,0.02442523,263.51,263.5,3.7945]
[1737735151864,0.02442523,263.51,263.48,8.98461058]
[1737735152462,3.81882523,263.51,263.48,8.98461058]
[1737735153362,0.02442523,263.51,263.48,8.98461058]
[1737735153562,0.02442523,263.51,263.45,0.02855826]
[1737735153763,3.7946,263.5,263.46,3.795]
[1737735154765,0.02442523,263.51,263.48,8.98461058]
[1737735156173,0.02442523,263.51,263.5,3.7945]
[1737735156373,3.4153,263.64,263.53,8.98461058]
[1737735156763,3.7932,263.6,263.55,3.7937]
[1737735156964,3.7932,263.6,263.53,8.98461058]
[1737735157162,3.4153,263.64,263.53,8.98461058]
[1737735157467,0.02759111,263.59,263.54,0.02772034]
[1737735158167,0.02759111,263.59,263.56,3.7935]
[1737735158366,0.02759111,263.59,263.54,0.02772034]
[1737735159964,3.7935,263.57,263.54,0.02772034]
[1737735160170,0.02759111,263.59,263.54,0.02772034]
[1737735160568,3.7934,263.58,263.54,0.02772034]
[1737735161070,3.7934,263.58,263.54,3.82152034]
[1737735161271,0.02759111,263.59,263.54,0.02772034]
[1737735161970,3.7937,263.55,263.54,0.02772034]
[1737735162272,0.02759111,263.59,263.54,0.02772034]
[1737735162570,3.7936,263.57,263.54,0.02772034]
[1737735163463,0.02759111,263.59,263.54,0.02772034]
[1737735164472,3.7935,263.57,263.54,0.02772034]
[1737735165767,3.7937,263.55,263.54,0.02772034]
[1737735168273,0.02759111,263.59,263.54,0.02772034]
[1737735168481,3.7935,263.57,263.54,0.02772034]
[1737735169076,3.82089111,263.59,263.54,0.02772034]
[1737735169577,3.7934,263.58,263.54,0.02772034]
[1737735169773,0.02759111,263.59,263.54,0.02772034]
[1737735171272,0.02759111,263.59,263.56,3.7935]
[1737735171875,0.02759111,263.59,263.57,3.7934]
[1737735172078,0.02759111,263.59,263.57,8.98461058]
[1737735172280,3.4257,263.73,263.57,8.98461058]
[1737735172478,3.4257,263.73,263.63,8.98461058]
[1737735172980,3.7913,263.72,263.66,3.7921]
[1737735173381,3.81752903,263.72,263.66,3.81909523]
[1737735173873,3.81752903,263.72,263.66,0.02699523]
[1737735174280,3.7915,263.71,263.66,0.02699523]
[1737735176180,3.7916,263.7,263.66,0.02699523]
[1737735176977,0.02622903,263.72,263.66,3.81909523]
[1737735177179,0.02622903,263.72,263.66,0.02699523]
[1737735177385,0.02622903,263.72,263.67,8.98461058]
[1737735178485,0.02622903,263.72,263.69,3.7917]
[1737735179382,3.7916,263.7,263.66,0.02699523]
[1737735179583,0.02622903,263.72,263.66,0.02699523]
[1737735180187,0.02622903,263.72,263.71,12.77601058]
[1737735182381,0.02622903,263.72,263.67,8.98461058]
[1737735182585,0.02622903,263.72,263.66,0.02699523]
[1737735182777,3.792,263.67,263.66,0.02699523]
[1737735183178,0.02622903,263.72,263.66,0.02699523]
[1737735183386,3.81762903,263.72,263.66,0.02699523]
[1737735183585,0.02622903,263.72,263.66,0.02699523]
[1737735184988,3.7917,263.7,263.66,0.02699523]
[1737735185287,0.02622903,263.72,263.66,0.02699523]
[1737735185682,0.02622903,263.72,263.67,3.792]
[1737735185988,0.02622903,263.72,263.66,0.02699523]
[1737735186288,3.81752903,263.72,263.66,3.81909523]
[1737735186690,3.81752903,263.72,263.66,0.02699523]
[1737735186986,0.02622903,263.72,263.67,8.98461058]
[1737735187487,0.02622903,263.72,263.71,3.7914]
[1737735188188,0.02622903,263.72,263.69,3.7916]
[1737735188579,0.02622903,263.72,263.67,8.98461058]
[1737735189489,0.02622903,263.72,263.69,3.7916]
[1737735190085,0.02622903,263.72,263.7,3.7916]
[1737735190795,0.02622903,263.72,263.67,8.98461058]
[1737735192295,0.02622903,263.72,263.71,12.77601058]
[1737735195402,8.98461058,263.92,263.71,8.98461058]
[1737735195599,3.7896,263.84,263.77,8.98461058]
[1737735195795,8.98461058,263.92,263.77,8.98461058]
[1737735196000,8.98461058,263.92,263.79,3.7903]
[1737735196500,0.028463,263.88,263.83,0.02495767]
[1737735196702,3.7892,263.87,263.83,0.02495767]
[1737735196897,0.028463,263.88,263.83,0.02495767]
[1737735197398,3.7894,263.86,263.83,0.02495767]
[1737735197804,3.7896,263.84,263.83,0.02495767]
[1737735198802,0.028463,263.88,263.73,8.98461058]
[1737735199006,8.98461058,263.92,263.73,8.98461058]
[1737735199907,0.025713,263.85,263.8,0.02583636]
[1737735200106,3.79,263.81,263.8,0.02583636]
[1737735200605,3.7898,263.83,263.8,0.02583636]
[1737735200806,0.025713,263.85,263.8,0.02583636]
[1737735201806,0.025713,263.85,263.77,12.77511058]
[1737735202305,0.025713,263.85,263.78,3.7904]
[1737735202505,0.025713,263.85,263.77,8.98461058]
[1737735202705,3.7897,263.84,263.77,8.98461058]
[1737735202907,0.025713,263.85,263.78,0.02513594]
[1737735203206,0.025713,263.85,263.79,3.7902]
[1737735203506,3.815213,263.85,263.78,0.02513594]
[1737735203705,0.025713,263.85,263.78,0.02513594]
[1737735204206,3.815213,263.85,263.78,0.02513594]
[1737735204501,0.025713,263.85,263.81,8.98461058]
[1737735204909,0.025713,263.85,263.84,3.7896]
[1737735207410,3.7879,263.96,263.91,3.7885]
[1737735207611,3.3299,264.03,263.91,3.7885]
[1737735208212,3.3299,264.03,263.87,8.98461058]
[1737735208710,0.0259431,263.98,263.92,0.02469275]
[1737735209106,3.7883,263.94,263.92,0.02469275]
[1737735210110,0.0259431,263.98,263.92,0.02469275]
[1737735210306,3.7883,263.93,263.92,0.02469275]
[1737735210507,0.0259431,263.98,263.92,0.02469275]
[1737735211412,3.8135431,263.98,263.92,0.02469275]
[1737735211906,0.0259431,263.98,263.92,0.02469275]
[1737735212106,0.0259431,263.98,263.94,3.7881]
[1737735212306,0.0259431,263.98,263.92,0.02469275]
[1737735212709,0.0259431,263.98,263.94,3.7881]
[1737735213411,0.0259431,263.98,263.92,3.81309275]
[1737735213613,0.0259431,263.98,263.92,0.02469275]
[1737735214013,0.0259431,263.98,263.95,12.77261058]
[1737735214415,0.0259431,263.98,263.95,8.98461058]
[1737735215014,0.0259431,263.98,263.95,12.77251058]
[1737735215615,3.8135431,263.98,263.95,8.98461058]
[1737735216315,3.8135431,263.98,263.95,12.77261058]
[1737735216516,0.0259431,263.98,263.95,12.77261058]
[1737735216818,0.0259431,263.98,263.95,8.98461058]
[1737735217119,3.7879,263.97,263.95,8.98461058]
[1737735217317,0.0259431,263.98,263.95,8.98461058]
[1737735217815,3.7879,263.96,263.92,0.02469275]
[1737735218017,0.0259431,263.98,263.92,0.02469275]
[1737735219123,0.0259431,263.98,263.92,3.81309275]
[1737735220119,3.7878,263.97,263.92,3.81309275]
[1737735220717,0.0259431,263.98,263.95,3.788]
[1737735220921,0.0259431,263.98,263.92,0.02469275]
[1737735221323,3.7877,263.97,263.92,0.02469275]
[1737735221526,0.0259431,263.98,263.92,0.02469275]
[1737735222824,3.7881,263.95,263.92,0.02469275]
[1737735224125,0.0259431,263.98,263.92,0.02469275]
[1737735224126,3.7883,263.93,263.92,0.02469275]
[1737735225228,1.478,263.97,263.92,0.02469275]
[1737735225421,1.478,263.97,263.92,3.81309275]
[1737735225626,1.478,263.97,263.95,5.73106635]
[1737735226524,0.0259431,263.98,263.95,5.73106635]
[1737735228031,0.0259431,263.98,263.92,5.7557591]
[1737735229028,0.0259431,263.98,263.94,3.7881]
[1737735229227,0.0259431,263.98,263.95,5.73106635]
[1737735229731,0.0259431,263.98,263.92,0.02469275]
[1737735229931,0.0259431,263.98,263.95,8.95461955]
[1737735231135,0.0259431,263.98,263.97,3.7877]
[1737735233636,0.0259431,263.98,263.96,3.7878]
[1737735234535,0.0259431,263.98,263.95,8.95461955]
[1737735234736,0.0259431,263.98,263.97,3.7877]
[1737735242540,0.0259431,263.98,263.96,3.7878]
[1737735242739,0.0259431,263.98,263.95,8.95461955]
[1737735243133,3.8135431,263.98,263.95,8.95461955]
[1737735243935,0.0259431,263.98,263.95,8.95461955]
[1737735244133,3.8136431,263.98,263.93,3.7881]
[1737735244738,3.8136431,263.98,263.94,3.7881]
[1737735245241,3.8136431,263.98,263.92,0.02469275]
[1737735245447,3.8136431,263.98,263.94,3.7881]
[1737735245647,3.7877,263.97,263.94,3.7881]
[1737735245849,0.0259431,263.98,263.92,0.02469275]
[1737735246244,3.8135431,263.98,263.93,3.7883]
[1737735246550,0.0259431,263.98,263.92,0.02469275]
[1737735247145,3.7877,263.97,263.92,0.02469275]
[1737735247647,0.0259431,263.98,263.92,3.81309275]
[1737735248249,3.7877,263.97,263.92,0.02469275]
[1737735249744,0.0259431,263.98,263.92,0.02469275]
[1737735249745,3.7879,263.96,263.92,0.02469275]
[1737735250646,3.8136431,263.98,263.92,0.02469275]
[1737735250850,0.0259431,263.98,263.92,0.02469275]
[1737735251750,3.788,263.96,263.92,0.02469275]
[1737735251950,3.788,263.96,263.93,5.73222507]
[1737735253254,3.8136431,263.98,263.93,5.73222507]
[1737735255657,0.0259431,263.98,263.92,3.81309275]
[1737735255858,3.7877,263.97,263.92,3.81309275]
[1737735256054,3.7877,263.97,263.92,0.02469275]
[1737735256259,0.0259431,263.98,263.93,9.52052507]
[1737735256558,0.0259431,263.98,263.93,5.73222507]
[1737735259159,0.0259431,263.98,263.97,3.7877]
[1737735259659,0.0259431,263.98,263.93,5.73222507]
[1737735260459,0.0259431,263.98,263.95,5.73222507]
[1737735260660,0.0259431,263.98,263.93,5.73222507]
[1737735260856,0.0259431,263.98,263.92,0.02469275]
[1737735261361,3.788,263.96,263.92,0.02469275]
[1737735261962,3.7883,263.93,263.92,0.02469275]
[1737735262168,5.73222507,263.97,263.92,0.02469275]
[1737735262356,0.0259431,263.98,263.92,0.02469275]
[1737735262661,3.7879,263.96,263.92,0.02469275]
[1737735263965,3.7879,263.96,263.93,5.73222507]
[1737735264161,0.0259431,263.98,263.93,5.73222507]
[1737735264365,0.0259431,263.98,263.97,5.73222507]
[1737735264966,0.0259431,263.98,263.94,5.73222507]